bitfinex-derivatives/quotes_ETHF0:USTF0_20250607
["timestamp","ask_amount","ask_price","bid_price","bid_amount"]
[1749257484376,2.0044043,2477.1,2477.0,0.80681]
[1749257484676,0.6551,2477.1,2476.8,0.70786183]
[1749257484881,1.46188,2477.1,2476.8,0.81291183]
[1749257485077,0.80682,2477.0,2476.9,4.78]
[1749257485278,0.6551,2477.1,2476.8,0.00606183]
[1749257485471,0.6551,2477.1,2476.9,4.78]
[1749257485679,0.80684,2476.9,2476.8,0.00606183]
[1749257485978,5.36253285,2476.9,2476.8,0.00606183]
[1749257486177,12.38763285,2476.9,2476.8,0.00606183]
[1749257488176,0.80701,2476.4,2476.3,3.2078]
[1749257488676,0.80704,2476.3,2476.2,4.779]
[1749257488876,0.80709,2476.2,2476.0,0.80712]
[1749257489074,2.0121,2476.3,2476.1,5.5861]
[1749257489273,0.6644,2476.3,2476.2,0.80707]
[1749257489676,0.6644,2476.3,2476.1,5.58608]
[1749257490484,0.6644,2476.3,2476.1,4.779]
[1749257490883,0.8071,2476.2,2475.9,3.2078]
[1749257491083,1.3115,2476.2,2476.0,4.779]
[1749257491280,0.691,2476.1,2476.0,5.58614]
[1749257494784,0.76051834,2476.1,2476.0,5.58614]
[1749257497682,0.76051834,2476.1,2476.0,4.779]
[1749257497882,0.76051834,2476.1,2476.0,5.58614]
[1749257498491,0.76051834,2476.1,2475.8,0.00606183]
[1749257498680,0.80714,2476.0,2475.9,4.78]
[1749257498882,3.53388708,2476.0,2475.9,4.78]
[1749257499885,2.72674708,2476.0,2475.9,4.78]
[1749257500084,0.80717,2475.9,2475.8,0.00606183]
[1749257500283,3.53391708,2475.9,2475.8,4.78606183]
[1749257501084,2.72674708,2475.9,2475.8,5.59326183]
[1749257501287,3.53391708,2475.9,2475.8,4.78606183]
[1749257502186,8.53391708,2475.9,2475.8,0.00606183]
[1749257504684,2.72674708,2475.9,2475.8,0.81326183]
[1749257504890,1.35204708,2475.9,2475.8,0.81326183]
[1749257505088,1.35204708,2475.9,2475.8,5.59126183]
[1749257506091,0.76051834,2476.1,2475.9,0.80717]
[1749257506292,1.35140441,2476.0,2475.8,5.59124183]
[1749257506497,1.35140441,2475.9,2475.8,5.59124183]
[1749257508089,2.15857441,2475.9,2475.8,4.78406183]
[1749257508992,1.35140441,2475.9,2475.8,5.59126183]
[1749257509289,1.56763834,2476.1,2475.9,0.80715]
[1749257509492,1.35084224,2476.0,2475.9,0.80715]
[1749257509692,1.35084224,2476.0,2475.9,1.48535]
[1749257511495,1.35084224,2476.0,2475.9,4.69315]
[1749257512082,1.35084224,2476.0,2475.9,6.04885]
[1749257513497,1.35084224,2476.0,2475.9,5.2417]
[1749257514395,1.35084224,2476.0,2475.9,6.04887]
[1749257514599,1.35084224,2476.0,2475.9,2.84107]
[1749257518598,1.35084224,2476.0,2475.9,6.04887]
[1749257519295,3.2078,2476.6,2476.0,2.01785]
[1749257519492,2.00558031,2476.5,2476.4,0.80701]
[1749257519693,2.00558031,2476.5,2476.3,5.58502]
[1749257519894,1.35778031,2476.4,2476.3,5.58502]
[1749257520601,1.35778031,2476.4,2476.3,7.54222]
[1749257520900,3.2078,2476.6,2476.5,0.80697]
[1749257521091,4.56628819,2476.6,2476.5,0.80697]
[1749257522289,1.35848819,2476.6,2476.5,0.80697]
[1749257523402,0.636,2476.9,2476.8,0.80688]
[1749257523599,1.99341286,2476.9,2476.8,5.58488]
[1749257523795,1.35741286,2476.9,2476.8,5.58488]
[1749257524697,1.35741286,2476.9,2476.8,6.87998]
[1749257525011,0.6823,2477.2,2477.1,0.80678]
[1749257525198,1.35662822,2477.2,2477.1,0.80678]
[1749257526393,0.00404122,2477.3,2477.2,0.80675]
[1749257526593,0.00404122,2477.3,2476.9,3.2078]
[1749257526594,0.80681,2477.1,2476.9,3.2078]
[1749257526798,0.6944,2477.0,2476.9,3.2078]
[1749257527101,1.33,2477.0,2476.9,3.2078]
[1749257527399,1.33,2477.0,2476.9,4.01464]
[1749257529401,1.33,2477.0,2476.6,3.2078]
[1749257529599,0.8069,2476.8,2476.7,4.777]
[1749257529794,4.6037,2476.9,2476.4,0.681]
[1749257530000,1.35491268,2476.8,2476.6,4.777]
[1749257530200,2.20281,2476.7,2476.6,4.777]
[1749257530505,2.20282,2476.7,2476.5,5.58396]
[1749257530704,0.6583,2476.6,2476.5,4.777]
[1749257531202,0.72781834,2476.6,2476.3,3.2078]
[1749257531405,0.72781834,2476.6,2476.4,4.777]
[1749257531606,0.72781834,2476.6,2476.4,5.58399]
[1749257531805,0.72781834,2476.6,2476.5,0.80697]
[1749257532206,0.72781834,2476.6,2476.4,5.58398]
[1749257532407,1.53475834,2476.6,2476.4,4.777]
[1749257532809,0.72781834,2476.6,2476.4,4.777]
[1749257533006,0.80701,2476.4,2476.3,4.777]
[1749257533306,0.80706,2476.3,2476.2,4.777]
[1749257533513,4.17546671,2476.3,2476.2,4.777]
[1749257533704,0.80712,2476.1,2475.9,29.199]
[1749257534105,0.6495,2476.2,2475.9,29.199]
[1749257534308,2.68905343,2476.1,2475.8,0.00606183]
[1749257534506,0.80717,2475.9,2475.8,0.00606183]
[1749257534806,2.16267715,2475.9,2475.8,0.00606183]
[1749257535005,3.49637715,2475.9,2475.8,0.00606183]
[1749257536707,2.68920715,2475.9,2475.8,0.00606183]
[1749257537009,0.80713,2476.1,2475.8,0.81326183]
[1749257537209,1.35536042,2476.0,2475.8,0.81326183]
[1749257537405,1.9946,2476.2,2475.8,0.00606183]
[1749257537612,1.3553008,2476.1,2475.9,0.80717]
[1749257537806,1.3553008,2476.0,2475.8,0.81325183]
[1749257538007,0.80711,2476.1,2475.8,0.81325183]
[1749257538312,1.35398691,2476.0,2475.9,0.80717]
[1749257538515,1.35338292,2476.0,2475.9,0.80717]
[1749257539916,1.35338292,2476.0,2475.8,0.81324183]
[1749257540114,2.80169,2476.2,2475.8,0.00606183]
[1749257540415,0.06951834,2476.0,2475.9,0.80715]
[1749257540614,1.42284771,2476.0,2475.9,0.80715]
[1749257541207,0.06951834,2476.0,2475.9,0.80715]
[1749257542411,0.06951834,2476.0,2475.9,5.58315]
[1749257544115,0.06951834,2476.0,2475.9,8.79095]
[1749257544711,0.06951834,2476.0,2475.9,10.18815]
[1749257546211,0.87665834,2476.0,2475.9,3.2078]
[1749257546412,0.06951834,2476.0,2475.9,7.9838]
[1749257546612,0.06951834,2476.0,2475.9,8.79097]
[1749257547317,0.87665834,2476.0,2475.9,8.79097]
[1749257547518,0.06951834,2476.0,2475.9,8.79097]
[1749257547912,0.87665834,2476.0,2475.9,3.2078]
[1749257548216,0.87665834,2476.0,2475.9,4.776]
[1749257548421,0.06951834,2476.0,2475.9,5.58317]
[1749257550427,0.06951834,2476.0,2475.9,8.79097]
[1749257551428,0.06951834,2476.0,2475.9,10.07177]
[1749257551624,0.06951834,2476.0,2475.9,10.70917]
[1749257551821,0.06951834,2476.0,2475.9,8.79097]
[1749257552130,0.87665834,2476.0,2475.9,7.9838]
[1749257552324,0.06951834,2476.0,2475.9,7.9838]
[1749257552522,0.87665834,2476.0,2475.9,3.2078]
[1749257553218,2.2303262,2476.0,2475.9,3.2078]
[1749257553422,0.80717,2475.9,2475.8,0.00606183]
[1749257553625,0.80717,2475.9,2475.8,4.78206183]
[1749257553823,3.4841955,2475.9,2475.8,0.00606183]
[1749257554126,3.4841955,2475.9,2475.2,5.5834]
[1749257554127,2.01801,2475.8,2475.2,5.5834]
[1749257554326,5.29519834,2476.0,2475.2,5.5834]
[1749257554327,0.80733,2475.5,2475.2,4.776]
[1749257554527,0.80733,2475.5,2475.2,5.58338]
[1749257554827,5.8342,2475.7,2475.2,4.777]
[1749257555020,0.80736,2475.4,2475.2,4.78306183]
[1749257555220,5.84026183,2475.7,2475.2,4.78306183]
[1749257555221,1.47707,2475.3,2475.2,4.78306183]
[1749257555623,0.6697,2475.3,2475.2,5.59046183]
[1749257556926,0.6697,2475.3,2475.2,0.00606183]
[1749257557127,1.47707,2475.3,2475.2,4.78306183]
[1749257558526,2.83224729,2475.3,2475.2,4.78306183]
[1749257559633,2.83274754,2475.3,2475.2,4.78306183]
[1749257560329,2.83274754,2475.3,2475.2,5.59046183]
[1749257560330,2.02537754,2475.3,2475.2,5.59046183]
[1749257563634,2.83273754,2475.3,2475.2,4.78306183]
[1749257564838,2.83273754,2475.3,2475.2,0.00606183]
[1749257565230,4.19603754,2475.3,2475.2,0.00606183]
[1749257567934,0.80759,2474.6,2474.5,3.2078]
[1749257568729,0.80768,2474.4,2474.3,4.777]
[1749257568935,0.80766,2474.4,2474.3,4.777]
[1749257569241,0.80769,2474.3,2474.2,4.777]
[1749257569639,1.2761,2474.5,2474.1,7.99086183]
[1749257569836,0.80771,2474.3,2474.1,7.99086183]
[1749257571043,0.80772,2474.3,2474.1,7.99086183]
[1749257571241,0.80772,2474.2,2474.1,7.99086183]
[1749257571540,2.10068,2474.4,2474.1,8.79860183]
[1749257571844,1.293,2474.4,2474.1,8.79860183]
[1749257572140,2.10067,2474.4,2474.1,3.21386183]
[1749257572340,2.10067,2474.4,2474.1,8.79859183]
[1749257572843,0.80769,2474.3,2474.1,8.79959183]
[1749257573038,0.80771,2474.3,2474.1,7.99186183]
[1749257573237,0.80771,2474.3,2474.1,8.79960183]
[1749257573436,0.80771,2474.3,2474.1,4.02160183]
[1749257573636,0.80771,2474.3,2474.1,8.79960183]
[1749257578450,1.28216183,2474.5,2474.3,0.80768]
[1749257579049,1.45520183,2474.5,2474.3,0.80768]
[1749257579350,0.80766,2474.4,2474.1,8.66346183]
[1749257579544,0.80766,2474.4,2474.2,1.3785]
[1749257579849,0.64756183,2474.5,2474.3,0.80767]
[1749257580053,0.64756183,2474.5,2474.3,1.45247]
[1749257580350,1.45520183,2474.5,2474.3,1.45247]
[1749257580546,0.00606183,2474.5,2474.3,1.45247]
[1749257581143,0.81370183,2474.5,2474.3,1.45247]
[1749257581546,0.00606183,2474.5,2474.4,8.79346]
[1749257581851,0.00606183,2474.5,2474.4,10.09096]
[1749257581852,1.35087647,2474.5,2474.4,10.09096]
[1749257582451,2.15850647,2474.5,2474.4,9.2833]
[1749257585162,2.15850647,2474.5,2474.4,4.5053]
[1749257585346,2.15850647,2474.5,2474.4,7.9858]
[1749257586050,2.15850647,2474.5,2474.4,3.2078]
[1749257586051,2.22802481,2474.5,2474.4,3.2078]
[1749257586246,0.80772,2474.2,2474.1,0.00606183]
[1749257586650,2.15526436,2474.2,2474.1,0.00606183]
[1749257586953,1.34754436,2474.2,2474.1,0.81382183]
[1749257587153,0.80768,2474.4,2474.2,0.80772]
[1749257587359,1.347829,2474.3,2474.2,0.80772]
[1749257587847,1.347829,2474.3,2474.1,4.59276183]
[1749257588057,2.15663106,2474.2,2474.1,7.99286183]
[1749257588245,2.81873106,2474.2,2474.1,7.99286183]
[1749257588446,0.6621,2474.2,2474.1,7.99286183]
[1749257588646,0.6621,2474.2,2474.1,8.80062183]
[1749257588846,2.0111855,2474.2,2474.1,8.80062183]
[1749257589042,0.80771,2474.3,2474.1,8.80062183]
[1749257589043,0.80767,2474.4,2474.2,0.80771]
[1749257589256,0.80767,2474.4,2474.1,7.99286183]
[1749257589257,1.34903314,2474.3,2474.1,8.80060183]
[1749257589456,0.8077,2474.3,2474.1,10.17950183]
[1749257590250,0.80767,2474.4,2474.2,0.80771]
[1749257590452,0.07558017,2474.5,2474.4,0.80766]
[1749257590756,0.88321017,2474.5,2474.3,1.45247]
[1749257591054,1.3495384,2474.4,2474.3,1.45247]
[1749257592654,0.07558017,2474.5,2474.4,0.80766]
[1749257592850,1.4257054,2474.5,2474.4,6.86096]
[1749257595158,1.4257054,2474.5,2474.4,10.06876]
[1749257597660,3.2078,2475.7,2475.3,0.80736]
[1749257597860,0.80728,2475.6,2475.4,0.80733]
[1749257598060,4.597,2475.7,2475.6,0.80727]
[1749257598255,3.2078,2475.7,2475.6,0.80727]
[1749257598561,3.2078,2475.7,2475.5,0.80728]
[1749257598763,4.01503,2475.7,2475.5,0.80728]
[1749257598954,4.01503,2475.7,2475.4,2.06186183]
[1749257598955,4.01503,2475.7,2475.4,1.46427183]
[1749257599351,4.01503,2475.7,2475.5,0.80729]
[1749257599657,4.01503,2475.7,2475.4,0.65696183]
[1749257599960,4.01503,2475.7,2475.4,2.05346183]
[1749257600162,4.01503,2475.7,2475.4,2.86077183]
[1749257600363,4.01503,2475.7,2475.4,2.05346183]
[1749257600562,0.80727,2475.6,2475.4,1.46427183]
[1749257600759,1.47237,2475.6,2475.4,1.46427183]
[1749257600960,0.6651,2475.6,2475.5,0.8073]
[1749257601162,0.6651,2475.6,2475.4,1.46427183]
[1749257601854,0.6651,2475.6,2475.5,0.8073]
[1749257602460,3.2078,2475.7,2475.6,0.80727]
[1749257603557,3.2078,2475.7,2475.6,1.49797]
[1749257603757,3.2078,2475.7,2475.6,0.6907]
[1749257604558,3.2078,2475.7,2475.6,1.49797]
[1749257604867,4.01503,2475.7,2475.6,0.6907]
[1749257605064,4.01503,2475.7,2475.4,1.46427183]
[1749257605258,4.01503,2475.7,2475.6,4.776]
[1749257606463,0.80723,2475.7,2475.6,4.776]
[1749257607164,0.80723,2475.7,2475.6,5.58327]
[1749257607364,0.80723,2475.7,2475.6,4.776]
[1749257607558,0.80722,2475.8,2475.6,5.58327]
[1749257608158,0.81324183,2475.9,2475.6,4.776]
[1749257608462,0.81325183,2475.9,2475.7,0.80721]
[1749257608872,0.00606183,2475.9,2475.7,0.80721]
[1749257609060,0.81324183,2475.9,2475.7,0.80721]
[1749257609654,0.00606183,2475.9,2475.8,0.8072]
[1749257614269,0.00606183,2475.9,2475.8,2.1643]
[1749257614567,0.07558017,2475.9,2475.8,2.1643]
[1749257615667,0.07558017,2475.9,2475.8,0.8072]
[1749257616263,0.07558017,2475.9,2475.8,5.5822]
[1749257616772,0.07558017,2475.9,2475.8,6.9624]
[1749257621574,3.2078,2476.6,2476.5,0.80697]
[1749257621775,0.6535,2476.7,2476.5,4.774]
[1749257621977,0.6535,2476.7,2476.6,0.80694]
[1749257622364,1.46041,2476.7,2476.5,4.774]
[1749257622675,0.80694,2476.6,2476.5,4.774]
[1749257622873,0.80694,2476.6,2476.5,5.58097]
[1749257623269,1.46042,2476.7,2476.5,5.58097]
[1749257623468,2.73332,2476.7,2476.5,5.58097]
[1749257623670,0.80697,2476.5,2476.4,3.21386183]
[1749257623870,0.80697,2476.5,2476.4,4.78006183]
[1749257624070,0.80697,2476.5,2476.4,0.00606183]
[1749257624278,3.52171147,2476.5,2476.4,0.00606183]
[1749257624771,8.52171147,2476.5,2476.4,0.00606183]
[1749257627380,3.52171147,2476.5,2476.4,0.00606183]
[1749257628484,2.71474147,2476.5,2476.4,0.81307183]
[1749257628980,1.33544147,2476.5,2476.4,0.81307183]
[1749257629479,2.14597036,2476.5,2476.4,0.81307183]
[1749257629674,2.2154887,2476.5,2476.4,0.00606183]
[1749257631073,1.4085187,2476.5,2476.4,0.81307183]
[1749257632071,1.4085187,2476.5,2476.4,2.14197183]
[1749257638687,1.4085187,2476.5,2476.4,6.91397183]
[1749257639186,1.4085187,2476.5,2476.4,2.14197183]
[1749257639482,1.4085187,2476.5,2476.4,6.91397183]
[1749257639786,1.4085187,2476.5,2476.4,0.81307183]
[1749257639987,1.4085187,2476.5,2476.4,5.58507183]
[1749257643378,1.4085187,2476.5,2476.4,4.77806183]
[1749257643581,2.2154887,2476.5,2476.4,4.77806183]
[1749257643985,1.4085187,2476.5,2476.4,5.58507183]
[1749257644291,2.2154887,2476.5,2476.4,4.77806183]
[1749257645183,2.8540887,2476.5,2476.4,4.77806183]
[1749257645385,2.0471187,2476.5,2476.4,5.58507183]
[1749257652186,1.4085187,2476.5,2476.4,5.58507183]
[1749257653187,1.4085187,2476.5,2476.4,6.90887183]
[1749257653895,1.41303361,2476.5,2476.4,6.90887183]
[1749257654087,1.41303361,2476.5,2476.4,5.58507183]
[1749257654793,1.41300556,2476.5,2476.4,5.58507183]
[1749257661089,1.41300556,2476.5,2476.4,4.77806183]
[1749257661294,2.21997556,2476.5,2476.4,4.77806183]
[1749257661996,1.41300556,2476.5,2476.4,4.77]
[1749257662290,7.21997556,2476.5,2476.4,4.77]
[1749257662495,7.70720556,2476.5,2476.1,4.77]
[1749257662689,2.63768722,2476.4,2476.1,4.77]
[1749257662886,3.33648722,2476.3,2476.2,0.80707]
[1749257663089,3.33648722,2476.3,2476.0,0.00606183]
[1749257663090,6.54428722,2476.3,2476.0,0.00606183]
[1749257663289,0.8071,2476.1,2476.0,0.00606183]
[1749257663491,2.15058722,2476.1,2476.0,0.00606183]
[1749257663691,3.47258722,2476.1,2476.0,0.00606183]
[1749257664293,2.66548722,2476.1,2476.0,0.00606183]
[1749257664490,2.66548722,2476.1,2476.0,0.81320183]
[1749257664707,1.34348722,2476.1,2476.0,0.81320183]
[1749257665202,3.2078,2476.3,2476.2,0.80707]
[1749257665397,4.57697595,2476.3,2476.2,0.80707]
[1749257665794,4.57697595,2476.3,2476.2,4.771]
[1749257666998,4.57697595,2476.3,2476.2,5.57807]
[1749257668902,1.36917595,2476.3,2476.2,5.57807]
[1749257670107,1.36917595,2476.3,2476.1,0.80708]
[1749257670307,1.36917595,2476.2,2476.1,0.80708]
[1749257671405,0.80701,2476.4,2476.2,0.80706]
[1749257671602,1.36909428,2476.3,2476.2,0.80706]
[1749257671801,1.36909428,2476.3,2476.2,5.57806]
[1749257675201,2.17613428,2476.3,2476.2,4.771]
[1749257675405,3.49913428,2476.3,2476.2,4.771]
[1749257676407,3.56865262,2476.3,2476.1,0.8071]
[1749257676607,1.36909428,2476.2,2476.1,0.8071]
[1749257676807,1.36870646,2476.2,2476.1,5.5781]
[1749257678007,0.8071,2476.1,2476.0,0.00606183]
[1749257678210,3.54040646,2476.1,2476.0,4.77706183]
[1749257679915,3.54040646,2476.1,2476.0,0.00606183]
[1749257680103,3.54040646,2476.1,2476.0,4.77706183]
[1749257680407,3.54040646,2476.1,2476.0,0.00606183]
[1749257688213,2.01749,2476.5,2476.0,0.00606183]
[1749257688214,3.2078,2476.6,2476.0,23.55106183]
[1749257688514,0.00606183,2476.8,2476.7,0.80691]
[1749257688709,0.00606183,2476.8,2476.6,1.3345]
[1749257688916,0.81296183,2476.8,2476.6,6.1023]
[1749257689120,0.00606183,2476.8,2476.6,6.1023]
[1749257689315,0.80691,2476.7,2476.6,1.3323]
[1749257689516,0.80694,2476.6,2476.5,7.9778]
[1749257690117,0.80693,2476.7,2476.5,7.9778]
[1749257691518,1.50203,2476.7,2476.5,7.9778]
[1749257691713,1.50203,2476.7,2476.5,8.78477]
[1749257692113,1.50203,2476.7,2476.5,7.9778]
[1749257692321,1.50203,2476.7,2476.5,8.78477]
[1749257693117,0.80694,2476.6,2476.5,7.9778]
[1749257693417,1.50203,2476.7,2476.5,7.9778]
[1749257694123,1.50203,2476.7,2476.5,8.78477]
[1749257697826,0.6951,2476.7,2476.5,7.9778]
[1749257698024,1.50202,2476.7,2476.5,8.78476]
[1749257698324,1.50202,2476.7,2476.5,7.9778]
[1749257698518,1.50202,2476.7,2476.5,8.78476]
[1749257698919,0.6951,2476.7,2476.6,0.80694]
[1749257699823,0.81295183,2476.8,2476.6,0.80694]
[1749257700230,0.81295183,2476.8,2476.7,0.6947]
[1749257700419,2.119587,2476.8,2476.7,0.6947]
[1749257702540,1.312697,2476.8,2476.7,1.50161]
[1749257702835,0.00606183,2476.8,2476.7,1.50161]
[1749257704741,0.07558017,2476.8,2476.7,1.50161]
[1749257705041,0.07558017,2476.8,2476.5,3.2078]
[1749257705237,1.33098292,2476.7,2476.5,7.9768]
[1749257705446,0.80694,2476.7,2476.5,7.9768]
[1749257706238,0.80694,2476.6,2476.5,7.9768]
[1749257706435,2.13796682,2476.6,2476.5,7.9768]
[1749257707540,0.80694,2476.6,2476.5,7.9768]
[1749257708241,2.13859023,2476.6,2476.5,7.9768]
[1749257708443,2.13858908,2476.6,2476.5,7.9768]
[1749257708934,0.80694,2476.6,2476.5,3.2078]
[1749257709134,0.80697,2476.5,2476.4,4.77]
[1749257709544,2.13882127,2476.5,2476.4,4.77]
[1749257710937,2.13882127,2476.5,2476.4,7.9778]
[1749257711129,2.13882127,2476.5,2476.4,4.77]
[1749257711334,2.13882127,2476.5,2476.4,3.2078]
[1749257712444,0.80704,2476.3,2476.2,5.4511]
[1749257712744,1.3325869,2476.3,2476.2,5.4511]
[1749257712942,2.1396269,2476.3,2476.2,0.6811]
[1749257713446,1.3325869,2476.3,2476.1,7.9778]
[1749257713638,0.80706,2476.3,2476.1,7.9778]
[1749257713839,2.14023294,2476.2,2476.1,3.2078]
[1749257720845,2.20975128,2476.2,2476.1,3.2078]
[1749257726954,2.20975128,2476.2,2476.0,0.70326183]
[1749257726955,0.8071,2476.1,2476.0,3.91106183]
[1749257727148,2.14026294,2476.1,2476.0,3.91106183]
[1749257734060,2.13923206,2476.1,2476.0,3.91106183]
[1749257736262,2.2087504,2476.1,2476.0,3.91106183]
[1749257739964,2.21126012,2476.1,2476.0,3.91106183]
[1749257746272,1.40416012,2476.1,2476.0,4.71820183]
[1749257746467,1.40416012,2476.1,2476.0,5.99880183]
[1749257747168,2.21126012,2476.1,2476.0,5.19166183]
[1749257747473,1.40416012,2476.1,2476.0,5.99880183]
[1749257748174,2.21126012,2476.1,2476.0,5.19166183]
[1749257748376,2.21126012,2476.1,2476.0,10.77080183]
[1749257748971,2.21126012,2476.1,2476.0,9.96366183]
[1749257750773,2.21126012,2476.1,2476.0,5.19166183]
[1749257751074,2.21126012,2476.1,2476.0,9.96366183]
[1749257755476,1.40416012,2476.1,2476.0,10.77080183]
[1749257755671,1.40416012,2476.1,2476.0,5.19166183]
[1749257755873,2.21126012,2476.1,2476.0,3.91106183]
[1749257756077,2.21126012,2476.1,2476.0,8.68306183]
[1749257756279,1.40416012,2476.1,2476.0,8.68306183]
[1749257756576,1.40416012,2476.1,2476.0,10.76150183]
[1749257756969,0.06951834,2476.1,2476.0,10.76150183]
[1749257757165,0.06951834,2476.1,2476.0,5.98950183]
[1749257757365,0.06951834,2476.1,2476.0,10.76150183]
[1749257757771,0.69166183,2476.8,2476.5,0.80697]
[1749257757973,2.13521219,2476.7,2476.6,0.6562]
[1749257758969,1.32828219,2476.7,2476.6,6.23414]
[1749257759173,1.32828219,2476.7,2476.6,7.59464]
[1749257759371,0.00606183,2476.8,2476.7,0.80691]
[1749257759578,0.00606183,2476.8,2476.7,2.16741]
[1749257764482,0.80669,2477.4,2477.2,0.80674]
[1749257764680,0.80669,2477.4,2477.3,0.6947]
[1749257764883,2.13066557,2477.4,2477.3,0.6947]
[1749257767079,1.32397557,2477.4,2477.3,1.50141]
[1749257767877,1.32397557,2477.4,2477.3,0.6947]
[1749257768482,0.96665802,2477.5,2477.3,0.6947]
[1749257768682,0.80668,2477.4,2477.3,0.6947]
[1749257768879,2.12876531,2477.4,2477.3,4.77]
[1749257771483,0.80668,2477.4,2477.3,4.77]
[1749257772185,0.80668,2477.4,2477.3,5.4464]
[1749257774484,0.80668,2477.4,2477.3,0.6764]
[1749257775285,0.15999802,2477.5,2477.3,0.6764]
[1749257775485,0.15999802,2477.5,2477.3,1.4831]
[1749257776094,0.80668,2477.4,2477.3,0.6764]
[1749257777193,0.80668,2477.4,2477.2,3.2078]
[1749257777487,0.96666802,2477.5,2477.3,4.77]
[1749257777691,0.96666802,2477.5,2477.3,5.5767]
[1749257777993,0.15999802,2477.5,2477.3,4.77]
[1749257778183,0.15999802,2477.5,2477.4,0.80668]
[1749257778495,0.15999802,2477.5,2477.4,0.661]
[1749257778698,0.96664802,2477.5,2477.4,5.43]
[1749257780089,0.15999802,2477.5,2477.4,5.43]
[1749257780289,0.15999802,2477.5,2477.4,6.23668]
[1749257782191,0.15999802,2477.5,2477.4,6.92798]
[1749257785103,0.15999802,2477.5,2477.4,2.15898]
[1749257785401,0.15999802,2477.5,2477.4,6.92698]
[1749257788607,1.48704507,2477.5,2477.4,6.92698]
[1749257790502,1.48704507,2477.5,2477.4,6.23568]
[1749257790707,0.15999802,2477.5,2477.4,6.23568]
[1749257791214,0.15999802,2477.5,2477.4,7.58448]
[1749257794915,0.22951636,2477.5,2477.4,7.58448]
[1749257801315,0.22951636,2477.5,2477.4,1.46768]
[1749257801521,0.22951636,2477.5,2477.4,6.23568]
[1749257804818,0.00606183,2477.6,2477.5,0.80665]
[1749257805012,0.6839,2478.0,2477.9,0.80652]
[1749257805216,2.0407268,2478.0,2477.9,8.78232]
[1749257808125,2.04062348,2478.0,2477.9,8.78232]
[1749257810124,2.11090413,2478.0,2477.9,8.78232]
[1749257813721,1.42700413,2478.0,2477.9,8.78232]
[1749257813922,0.6956,2478.5,2477.9,9.3686]
[1749257814122,1.50193,2478.5,2478.4,3.2078]
[1749257814622,2.85793,2478.5,2478.4,3.2078]
[1749257814819,0.80642,2478.3,2478.2,4.765]
[1749257815825,1.356,2478.4,2478.1,3.2078]
[1749257816121,1.356,2478.4,2478.1,8.77925]
[1749257816122,0.6656,2478.2,2478.1,8.77925]
[1749257816620,2.85422,2478.2,2478.1,3.2078]
[1749257816920,2.0478,2478.2,2478.1,4.01425]
[1749257818618,2.0478,2478.2,2478.1,3.2078]
[1749257819320,2.0478,2478.2,2478.1,4.01425]
[1749257819523,2.0478,2478.2,2478.1,3.2078]
[1749257819819,2.85422,2478.2,2478.1,3.2078]
[1749257820020,0.80661,2477.6,2477.4,4.765]
[1749257820325,0.6571,2477.5,2477.4,4.765]
[1749257820721,1.46375,2477.5,2477.3,0.00606183]
[1749257820922,0.6571,2477.5,2477.4,4.765]
[1749257822223,0.6571,2477.5,2477.4,5.57168]
[1749257823322,0.06951834,2478.0,2477.4,9.765]
[1749257823523,0.87599834,2478.0,2477.9,3.2078]
[1749257823720,0.87599834,2478.0,2477.9,7.9728]
[1749257824114,0.87599834,2478.0,2477.9,3.2078]
[1749257824320,0.80648,2478.0,2477.9,7.9728]
[1749257825925,2.15536909,2478.0,2477.9,7.9728]
[1749257826326,1.34888909,2478.0,2477.9,7.9728]
[1749257826727,2.15536909,2478.0,2477.9,7.9728]
[1749257827827,1.34888909,2478.0,2477.9,8.77932]
[1749257828728,1.34888909,2478.0,2477.9,7.9728]
[1749257829231,1.34888909,2478.0,2477.9,8.77932]
[1749257829428,1.34888909,2478.0,2477.9,7.9728]
[1749257829921,1.34888909,2478.0,2477.9,8.6181]
[1749257831730,1.34888909,2478.0,2477.9,9.42462]
[1749257839631,1.41840743,2478.0,2477.9,9.42462]
[1749257840423,0.06951834,2478.0,2477.9,9.42462]
[1749257844835,0.06951834,2478.0,2477.9,4.65962]
[1749257845035,0.06951834,2478.0,2477.9,9.42262]
[1749257850143,0.06951834,2478.0,2477.9,4.65962]
[1749257850329,0.06951834,2478.0,2477.9,9.42162]
[1749257850529,0.06951834,2478.0,2477.9,7.9698]
[1749257850835,0.06951834,2478.0,2477.9,8.77632]
[1749257851034,1.45137772,2478.0,2477.9,8.77632]
[1749257851536,1.45137772,2478.0,2477.9,4.01432]
[1749257851733,1.45137772,2478.0,2477.9,8.77632]
[1749257851938,2.13617772,2478.0,2477.9,8.77632]
[1749257854142,2.94265772,2478.0,2477.9,7.9698]
[1749257854342,2.13617772,2478.0,2477.9,8.77632]
[1749257855539,2.94265772,2478.0,2477.9,3.2078]
[1749257855745,2.94265772,2478.0,2477.9,8.77732]
[1749257855746,2.13617772,2478.0,2477.9,8.77732]
[1749257859447,1.45137772,2478.0,2477.9,8.77732]
[1749257864248,2.14277772,2478.0,2477.9,8.77732]
[1749257868552,1.45137772,2478.0,2477.9,8.77732]
[1749257869151,1.45137772,2478.0,2477.9,9.45342]
[1749257870148,1.46445908,2478.0,2477.9,9.45342]
[1749257871754,1.46445908,2478.0,2477.9,10.77722]
[1749257872656,1.46445908,2478.0,2477.9,4.69042]
[1749257872856,1.46445908,2478.0,2477.9,9.45042]
[1749257874152,1.46445908,2478.0,2477.9,4.69042]
[1749257874351,1.46445908,2478.0,2477.9,9.45042]
[1749257875955,1.46445908,2478.0,2477.9,10.75442]
[1749257876360,0.06951834,2478.0,2477.9,10.75442]
[1749257876656,1.47006417,2478.0,2477.9,10.75442]
[1749257878057,1.47006417,2478.0,2477.9,9.45042]
[1749257878546,2.13956417,2478.0,2477.9,9.45042]
[1749257882057,0.80654,2477.9,2477.5,4.76]
[1749257882270,1.40054583,2477.8,2477.7,0.80657]
[1749257882472,2.20709583,2477.8,2477.6,0.8066]
[1749257882671,2.06114583,2477.7,2477.6,0.8066]
[1749257885073,0.06951834,2478.0,2477.9,0.80652]
[1749257885268,3.22328379,2478.5,2477.9,0.80652]